[Event "11th Chennai Open-GM 2019"]
[Site "Chennai"]
[Date "2019.01.20"]
[Round "4"]
[White "Rajesh, V A V"]
[Black "Saurabh Anand"]
[Result "1/2-1/2"]
[ECO "D31"]
[WhiteElo "2410"]
[BlackElo "2210"]
[Annotator "RC"]
[PlyCount "56"]
[EventDate "2019.01.18"]
[EventType "swiss"]
[EventCountry "IND"]
[SourceTitle "playchess.com"]
[Source "ChessBase"]
[SourceQuality "1"]
[TimeControl "5400+30"]

1. d4 {[%emt 0:00:00]} d5 {[%emt 0:00:00]} 2. c4 {[%emt 0:00:00]} e6 {[%emt 0:00:00]} 3. Nc3 {[%emt 0:00:00]} Be7 {[%emt 0:00:13]} 4. cxd5 {[%emt 0:01:06]} exd5 {[%emt 0:00:12]} 5. Nf3 {[%emt 0:00:36]} Nf6 {[%emt 0:00:17]} 6. Bg5 {[%emt 0:00:52]} c6 {[%emt 0:00:17]} 7. Qc2 {[%emt 0:01:10]} g6 {[%emt 0:00:15]} 8. e3 {[%emt 0:00:41]} Bf5 {[%emt 0:00:16]} 9. Bd3 {[%emt 0:00:08]} Bxd3 {[%emt 0:00:23]} 10. Qxd3 {[%emt 0:00:06]} O-O {[%emt 0:00:50]} 11. O-O {[%emt 0:01:36]} Nbd7 {[%emt 0:00:30]} 12. Rab1 {[%emt 0:01:21]} a5 {[%emt 0:01:16]} 13. Rfc1 {[%emt 0:00:12]} Re8 {[%emt 0:03:46]} 14. Nd2 {[%emt 0:03:03]} Nh5 {[%emt 0:13:48]} 15. Bxe7 {[%emt 0:08:38]} Qxe7 {[%emt 0:00:38]} 16. b3 {[%emt 0:02:09]} f5 {[%emt 0:03:45]} 17. Re1 {[%emt 0:07:50]} Nhf6 {[%emt 0:03:45]} 18. f3 {[%emt 0:00:51]} Nb6 {[%emt 0:02:43]} 19. Na4 {[%emt 0:05:53]} Nc8 {[%emt 0:09:21]} 20. Rbc1 {[%emt 0:03:58]} Nd6 {[%emt 0:01:26]} 21. Nc3 {[%emt 0:04:21]} Kh8 {[%emt 0:01:50]} 22. Re2 {[%emt 0:01:07]} Qe6 {[%emt 0:07:33]} 23. Rce1 {[%emt 0:02:03]} Re7 {[%emt 0:00:56]} 24. Na4 {[%emt 0:10:22]} Nd7 {[%emt 0:01:18]} 25. Nc3 {[%emt 0:02:57]} Nf6 {[%emt 0:00:31]} 26. Na4 {[%emt 0:02:33]} Nd7 {[%emt 0:00:40]} 27. Nc5 Nxc5 28. dxc5 Nf7 1/2-1/2

[Event "11th Chennai Open-GM 2019"]
[Site "Chennai"]
[Date "2019.01.20"]
[Round "4"]
[White "Varshini, V."]
[Black "Czebe, Attila"]
[Result "0-1"]
[ECO "B23"]
[WhiteElo "2171"]
[BlackElo "2418"]
[Annotator "ChessBase"]
[PlyCount "125"]
[EventDate "2019.01.18"]
[EventType "swiss"]
[EventCountry "IND"]
[SourceTitle "playchess.com"]
[Source "ChessBase"]
[SourceQuality "1"]
[TimeControl "5400+30"]

1. e4 {[%emt 0:00:00]} c5 {[%emt 0:02:44]} 2. Nc3 {[%emt 0:00:46]} a6 {[%emt 0:00:26]} 3. a4 {[%emt 0:02:33]} Nc6 {[%emt 0:01:11]} 4. Nge2 {[%emt 0:00:55]} e6 {[%emt 0:05:07]} 5. d4 {[%emt 0:03:15]} cxd4 {[%emt 0:00:08]} 6. Nxd4 {[%emt 0:00:08]} Qc7 {[%emt 0:03:45]} 7. Be2 {[%emt 0:06:48]} Nf6 {[%emt 0:00:46]} 8. O-O {[%emt 0:01:19]} Bb4 {[%emt 0:00:41]} 9. Nxc6 {[%emt 0:06:19]} bxc6 {[%emt 0:03:28]} 10. Be3 {[%emt 0:11:46]} O-O {[%emt 0:00:46]} 11. Bf3 {[%emt 0:02:31]} Rb8 {[%emt 0:03:33]} 12. g3 {[%emt 0:04:13]} d5 {[%emt 0:00:29]} 13. exd5 {[%emt 0:05:29]} cxd5 {[%emt 0:00:39]} 14. a5 {[%emt 0:12:06]} Bc5 {[%emt 0:03:00]} 15. Bd4 {[%emt 0:09:06]} Bxd4 {[%emt 0:02:23]} 16. Qxd4 {[%emt 0:00:40]} e5 {[%emt 0:01:44]} 17. Nxd5 {[%emt 0:02:54]} Nxd5 {[%emt 0:00:07]} 18. Qxd5 {[%emt 0:00:03]} Rxb2 {[%emt 0:00:12]} 19. Qc6 {[%emt 0:25:15]} Qxc6 {[%emt 0:12:34]} 20. Bxc6 {[%emt 0:00:05]} Be6 {[%emt 0:00:07]} 21. Be4 {[%emt 0:01:30]} Bc4 {[%emt 0:01:23]} 22. Rfd1 {[%emt 0:02:32]} g6 {[%emt 0:01:56]} 23. Rd6 {[%emt 0:00:30]} Kg7 {[%emt 0:00:59]} 24. Bd3 {[%emt 0:00:41]} Bxd3 {[%emt 0:00:39]} 25. cxd3 {[%emt 0:00:05]} Ra8 {[%emt 0:00:03]} 26. d4 {[%emt 0:00:57]} e4 {[%emt 0:00:06]} 27. Rc1 {[%emt 0:00:30]} Ra2 {[%emt 0:00:17]} 28. Rd5 {[%emt 0:00:28]} Rb8 {[%emt 0:00:27]} 29. Re5 {[%emt 0:00:29]} Rbb2 {[%emt 0:00:07]} 30. Rf1 {[%emt 0:00:26]} f5 {[%emt 0:00:29]} 31. Kg2 {[%emt 0:00:35]} Rd2 {[%emt 0:01:19]} 32. g4 {[%emt 0:00:30]} Kf6 {[%emt 0:00:50]} 33. gxf5 {[%emt 0:00:21]} gxf5 {[%emt 0:00:27]} 34. Rc5 {[%emt 0:00:40]} Kg5 {[%emt 0:00:06]} 35. Kg3 {[%emt 0:00:32]} Ra3+ {[%emt 0:01:21]} 36. f3 {[%emt 0:00:24]} Rxd4 {[%emt 0:01:23]} 37. h4+ {[%emt 0:00:23]} Kf6 {[%emt 0:00:26]} 38. Rc6+ {[%emt 0:00:18]} Ke5 {[%emt 0:00:09]} 39. Rxa6 {[%emt 0:00:18]} Rdd3 {[%emt 0:00:38]} 40. Ra8 {[%emt 0:01:02]} Rxf3+ {[%emt 0:00:29]} 41. Rxf3 {[%emt 0:00:04]} Rxf3+ {[%emt 0:00:05]} 42. Kg2 {[%emt 0:00:03]} Kf4 {[%emt 0:00:30]} 43. a6 {[%emt 0:01:19]} Rg3+ {[%emt 0:00:07]} 44. Kf2 {[%emt 0:00:37]} e3+ {[%emt 0:02:56]} 45. Ke2 {[%emt 0:00:06]} Rg2+ {[%emt 0:00:15]} 46. Kd3 {[%emt 0:00:11]} Rd2+ {[%emt 0:01:40]} 47. Kc3 {[%emt 0:00:05]} Ra2 {[%emt 0:00:13]} 48. a7 {[%emt 0:01:38]} e2 {[%emt 0:02:22]} 49. Re8 {[%emt 0:00:04]} Rxa7 {[%emt 0:01:44]} 50. Rxe2 {[%emt 0:00:07]} Kg3 {[%emt 0:00:23]} 51. h5 {[%emt 0:00:28]} f4 {[%emt 0:00:10]} 52. Re8 {[%emt 0:00:17]} Ra5 {[%emt 0:01:27]} 53. h6 {[%emt 0:00:41]} Ra6 {[%emt 0:00:03]} 54. Rg8+ {[%emt 0:01:23]} Kf3 {[%emt 0:00:09]} 55. Kd2 {[%emt 0:00:24]} Rxh6 {[%emt 0:00:05]} 56. Ke1 {[%emt 0:00:11]} Rh1+ {[%emt 0:00:25]} 57. Kd2 {[%emt 0:00:03]} h5 {[%emt 0:00:11]} 58. Ra8 {[%emt 0:00:43]} h4 {[%emt 0:00:07]} 59. Ra3+ {[%emt 0:00:08]} Kf2 {[%emt 0:00:02]} 60. Ra2 {[%emt 0:00:29]} h3 {[%emt 0:00:10]} 61. Kd3+ {[%emt 0:00:13]} Kf3 {[%emt 0:00:04]} 62. Ra8 {[%emt 0:00:29]} h2 {[%emt 0:00:22]} 63. Kd4 0-1

[Event "11th Chennai Open-GM 2019"]
[Site "Chennai"]
[Date "2019.01.21"]
[Round "5"]
[White "Pantsulaia, Levan"]
[Black "Gokhale, Chandrashekhar"]
[Result "1-0"]
[ECO "A10"]
[WhiteElo "2597"]
[BlackElo "2198"]
[Annotator "RC"]
[PlyCount "89"]
[EventDate "2019.01.18"]
[EventType "swiss"]
[EventCountry "IND"]
[SourceTitle "playchess.com"]
[Source "ChessBase"]
[SourceQuality "1"]
[TimeControl "5400+30"]

1. c4 {[%emt 0:08:11]} d6 {[%emt 0:00:19]} 2. Nc3 {[%emt 0:00:18]} Nf6 {[%emt 0:00:48]} 3. g3 {[%emt 0:01:06]} e5 {[%emt 0:02:21]} 4. Nf3 {[%emt 0:00:30]} Be7 {[%emt 0:03:13]} 5. d4 {[%emt 0:01:00]} Nbd7 {[%emt 0:00:20]} 6. Bg2 {[%emt 0:00:09]} O-O {[%emt 0:00:14]} 7. O-O {[%emt 0:00:06]} c6 {[%emt 0:00:37]} 8. Qd3 {[%emt 0:06:47]} Qc7 {[%emt 0:02:08]} 9. b3 {[%emt 0:00:46]} Re8 {[%emt 0:00:56]} 10. Bb2 {[%emt 0:01:43]} Bf8 {[%emt 0:01:03]} 11. Nd2 {[%emt 0:00:38]} a5 {[%emt 0:07:15]} 12. e3 {[%emt 0:01:17]} Nb6 {[%emt 0:08:57]} 13. Rac1 {[%emt 0:04:07]} a4 {[%emt 0:13:06]} 14. b4 {[%emt 0:01:09]} a3 {[%emt 0:02:04]} 15. Ba1 {[%emt 0:00:12]} exd4 {[%emt 0:02:53]} 16. Qxd4 {[%emt 0:01:53]} Na4 {[%emt 0:09:39]} 17. Nxa4 {[%emt 0:08:22]} Rxa4 {[%emt 0:00:08]} 18. Qc3 {[%emt 0:00:05]} Qe7 {[%emt 0:03:50]} 19. Qb3 {[%emt 0:01:22]} Ra8 {[%emt 0:00:33]} 20. b5 {[%emt 0:00:20]} Bd7 {[%emt 0:02:05]} 21. Rfd1 {[%emt 0:05:06]} Qe6 {[%emt 0:14:50]} 22. Qb1 {[%emt 0:12:35]} Ng4 {[%emt 0:03:25]} 23. Rc3 {[%emt 0:02:39]} Qh6 {[%emt 0:03:13]} 24. h3 {[%emt 0:01:11]} Nf6 {[%emt 0:03:27]} 25. g4 {[%emt 0:00:19]} Qg6 {[%emt 0:03:27]} 26. bxc6 {[%emt 0:00:55]} Bxc6 {[%emt 0:00:27]} 27. Rb3 {[%emt 0:01:55]} Ba4 {[%emt 0:03:47]} 28. Rxb7 {[%emt 0:03:38]} Bxd1 {[%emt 0:00:09]} 29. Qxd1 {[%emt 0:00:04]} Rab8 {[%emt 0:00:29]} 30. Ra7 {[%emt 0:02:48]} h5 {[%emt 0:01:19]} 31. gxh5 {[%emt 0:01:08]} Qg5 {[%emt 0:00:33]} 32. Rxa3 {[%emt 0:02:46]} Nd7 {[%emt 0:02:00]} 33. Ra7 {[%emt 0:05:38]} Rxe3 {[%emt 0:01:38]} 34. Rxd7 {[%emt 0:04:29]} Rd3 {[%emt 0:00:08]} 35. Bc3 {[%emt 0:00:05]} Rxc3 {[%emt 0:00:38]} 36. Ne4 {[%emt 0:00:04]} Qf5 {[%emt 0:01:22]} 37. Rxf7 {[%emt 0:00:49]} Qxf7 {[%emt 0:00:48]} 38. Nxc3 {[%emt 0:00:06]} Kh8 {[%emt 0:00:04]} 39. Bd5 {[%emt 0:02:07]} Qf4 {[%emt 0:00:23]} 40. Ne4 {[%emt 0:00:29]} Be7 {[%emt 0:00:36]} 41. a4 {[%emt 0:02:20]} Bf6 {[%emt 0:00:43]} 42. Qg4 {[%emt 0:00:26]} Qc1+ {[%emt 0:00:53]} 43. Kg2 {[%emt 0:00:09]} Be5 {[%emt 0:02:09]} 44. Ng5 {[%emt 0:00:21]} Qf4 {[%emt 0:00:23]} 45. Nf7+ {[%emt 0:00:08]} 1-0

[Event "11th Chennai Open-GM 2019"]
[Site "Chennai"]
[Date "2019.01.21"]
[Round "6"]
[White "Rozum, Ivan"]
[Black "Varga, Klara"]
[Result "1-0"]
[ECO "A18"]
[WhiteElo "2589"]
[BlackElo "2244"]
[Annotator "ChessBase"]
[PlyCount "47"]
[EventDate "2019.01.18"]
[EventType "swiss"]
[EventCountry "IND"]
[SourceTitle "playchess.com"]
[Source "ChessBase"]
[SourceQuality "1"]
[TimeControl "5400+30"]

1. c4 {[%emt 0:10:32]} Nf6 {[%emt 0:00:08]} 2. Nc3 {[%emt 0:00:06]} e6 {[%emt 0:00:52]} 3. e4 {[%emt 0:00:48]} d5 {[%emt 0:00:59]} 4. cxd5 {[%emt 0:00:11]} exd5 {[%emt 0:00:03]} 5. e5 {[%emt 0:00:06]} d4 {[%emt 0:02:19]} 6. exf6 {[%emt 0:01:20]} dxc3 {[%emt 0:00:04]} 7. Bb5+ {[%emt 0:01:11]} c6 {[%emt 0:00:47]} 8. Qe2+ {[%emt 0:00:06]} Be6 {[%emt 0:01:07]} 9. Bc4 {[%emt 0:00:10]} cxd2+ {[%emt 0:06:30]} 10. Bxd2 {[%emt 0:00:23]} Qxf6 {[%emt 0:00:09]} 11. Bc3 {[%emt 0:02:51]} Qg6 {[%emt 0:00:39]} 12. Nf3 {[%emt 0:01:22]} Be7 {[%emt 0:03:28]} 13. Bxe6 {[%emt 0:03:15]} fxe6 {[%emt 0:06:28]} 14. O-O {[%emt 0:02:12]} O-O {[%emt 0:00:28]} 15. Rad1 {[%emt 0:00:20]} Na6 {[%emt 0:16:58]} 16. Rd7 {[%emt 0:01:00]} Rae8 {[%emt 0:01:07]} 17. Ne5 {[%emt 0:04:46]} Qf5 {[%emt 0:16:31]} 18. Rxb7 {[%emt 0:01:59]} Nc5 {[%emt 0:00:32]} 19. Rxe7 {[%emt 0:01:16]} Rxe7 {[%emt 0:01:08]} 20. Bb4 {[%emt 0:00:05]} Ne4 {[%emt 0:03:57]} 21. Bxe7 {[%emt 0:00:09]} Re8 {[%emt 0:00:54]} 22. Nxc6 {[%emt 0:02:20]} Qd5 {[%emt 0:01:50]} 23. Qa6 {[%emt 0:00:54]} Nd2 {[%emt 0:00:27]} 24. Re1 {[%emt 0:00:41]} 1-0

[Event "11th Chennai Open-GM 2019"]
[Site "Chennai"]
[Date "2019.01.21"]
[Round "6"]
[White "Stupak, Kirill"]
[Black "Tran, Minh Thang"]
[Result "1-0"]
[ECO "D15"]
[WhiteElo "2542"]
[BlackElo "2355"]
[Annotator "ChessBase"]
[PlyCount "51"]
[EventDate "2019.01.18"]
[EventType "swiss"]
[EventCountry "IND"]
[SourceTitle "playchess.com"]
[Source "ChessBase"]
[SourceQuality "1"]
[TimeControl "5400+30"]

1. d4 d5 {[%emt 0:05:16]} 2. Nf3 {[%emt 0:03:33]} Nf6 {[%emt 0:00:13]} 3. c4 {[%emt 0:00:07]} c6 {[%emt 0:00:07]} 4. Nc3 {[%emt 0:00:06]} a6 {[%emt 0:00:07]} 5. a4 {[%emt 0:00:05]} e6 {[%emt 0:00:16]} 6. Bg5 {[%emt 0:00:38]} dxc4 {[%emt 0:10:25]} 7. e4 {[%emt 0:06:06]} b5 {[%emt 0:02:14]} 8. axb5 {[%emt 0:10:18]} cxb5 {[%emt 0:00:20]} 9. e5 {[%emt 0:00:14]} h6 {[%emt 0:00:32]} 10. Bd2 {[%emt 0:00:13]} Nd5 {[%emt 0:00:55]} 11. Nxb5 {[%emt 0:00:02]} axb5 {[%emt 0:00:58]} 12. Rxa8 {[%emt 0:00:03]} Bb7 {[%emt 0:00:10]} 13. Ra1 {[%emt 0:05:27]} Nc6 {[%emt 0:00:54]} 14. Be2 {[%emt 0:01:30]} Qb6 {[%emt 0:11:13]} 15. O-O {[%emt 0:01:39]} Nxd4 {[%emt 0:18:12]} 16. Nxd4 {[%emt 0:03:25]} Qxd4 {[%emt 0:01:06]} 17. b3 {[%emt 0:00:22]} Qxe5 {[%emt 0:03:35]} 18. bxc4 {[%emt 0:07:48]} Bd6 {[%emt 0:01:48]} 19. g3 {[%emt 0:00:54]} bxc4 {[%emt 0:01:44]} 20. Ra7 {[%emt 0:14:48]} Bc6 {[%emt 0:00:42]} 21. Ra6 {[%emt 0:00:06]} Bb7 {[%emt 0:01:53]} 22. Qa4+ {[%emt 0:00:20]} Ke7 {[%emt 0:00:45]} 23. Ra7 {[%emt 0:01:15]} Qxe2 {[%emt 0:02:14]} 24. Rxb7+ {[%emt 0:00:01]} Kf6 {[%emt 0:00:08]} 25. Qd7 {[%emt 0:00:20]} Be7 {[%emt 0:00:35]} 26. Bb4 {[%emt 0:00:07]} 1-0

[Event "11th Chennai Open-GM 2019"]
[Site "Chennai"]
[Date "2019.01.21"]
[Round "6"]
[White "Megaranto, Susanto"]
[Black "Suvrajit, Saha"]
[Result "1/2-1/2"]
[ECO "D02"]
[WhiteElo "2530"]
[BlackElo "2221"]
[Annotator "ChessBase"]
[PlyCount "112"]
[EventDate "2019.01.18"]
[EventType "swiss"]
[EventCountry "IND"]
[SourceTitle "playchess.com"]
[Source "ChessBase"]
[SourceQuality "1"]
[TimeControl "5400+30"]

1. d4 {[%emt 0:00:00]} d5 {[%emt 0:00:44]} 2. Nf3 {[%emt 0:00:03]} Nf6 {[%emt 0:00:30]} 3. Bf4 {[%emt 0:00:30]} e6 {[%emt 0:00:30]} 4. e3 {[%emt 0:00:30]} Bd6 {[%emt 0:00:30]} 5. Bg5 {[%emt 0:00:30]} h6 {[%emt 0:00:30]} 6. Bh4 {[%emt 0:00:30]} c5 {[%emt 0:00:30]} 7. Nbd2 {[%emt 0:00:00]} O-O {[%emt 0:05:26]} 8. c3 {[%emt 0:00:00]} Nc6 {[%emt 0:00:30]} 9. Bb5 {[%emt 0:00:00]} cxd4 {[%emt 0:00:30]} 10. exd4 {[%emt 0:00:28]} Bd7 {[%emt 0:00:30]} 11. O-O {[%emt 0:00:30]} Be7 {[%emt 0:00:30]} 12. Bd3 {[%emt 0:00:30]} Nh5 {[%emt 0:00:30]} 13. Bxe7 {[%emt 0:00:30]} Qxe7 {[%emt 0:00:30]} 14. Re1 {[%emt 0:00:30]} Rfd8 {[%emt 0:00:30]} 15. g3 {[%emt 0:00:30]} Nf6 {[%emt 0:00:30]} 16. Qe2 {[%emt 0:00:30]} Be8 {[%emt 0:00:30]} 17. Nh4 {[%emt 0:00:30]} Qc7 {[%emt 0:00:30]} 18. f4 {[%emt 0:00:30]} Rab8 {[%emt 0:00:30]} 19. Nhf3 {[%emt 0:00:30]} b5 {[%emt 0:00:30]} 20. b4 {[%emt 0:00:30]} a5 {[%emt 0:00:30]} 21. a3 {[%emt 0:00:30]} Ne7 {[%emt 0:00:30]} 22. Rac1 {[%emt 0:00:30]} Nc8 {[%emt 0:00:30]} 23. Nb3 {[%emt 0:00:30]} axb4 {[%emt 0:00:30]} 24. axb4 {[%emt 0:00:30]} Nd6 {[%emt 0:00:30]} 25. Nc5 {[%emt 0:00:30]} Ra8 {[%emt 0:00:30]} 26. Ra1 {[%emt 0:00:30]} Nfe4 {[%emt 0:00:30]} 27. Qb2 {[%emt 0:00:30]} Rdc8 {[%emt 0:00:30]} 28. Rxa8 {[%emt 0:00:30]} Rxa8 {[%emt 0:00:30]} 29. Ra1 {[%emt 0:00:30]} Qc8 {[%emt 0:00:30]} 30. Ra3 {[%emt 0:00:30]} Bc6 {[%emt 0:00:30]} 31. Ne5 {[%emt 0:00:30]} Bb7 {[%emt 0:00:30]} 32. Kf1 {[%emt 0:00:30]} f6 {[%emt 0:00:30]} 33. Nf3 {[%emt 0:00:30]} Nc4 {[%emt 0:00:30]} 34. Rxa8 {[%emt 0:00:30]} Qxa8 {[%emt 0:00:30]} 35. Bxc4 {[%emt 0:00:30]} dxc4 {[%emt 0:00:30]} 36. Ne1 {[%emt 0:00:30]} Bd5 {[%emt 0:00:30]} 37. Nxe4 {[%emt 0:00:30]} Bxe4 {[%emt 0:00:30]} 38. Kf2 {[%emt 0:00:30]} Qa4 {[%emt 0:00:30]} 39. Qe2 {[%emt 0:00:30]} f5 {[%emt 0:00:30]} 40. Qd2 {[%emt 0:00:30]} Qa1 {[%emt 0:00:30]} 41. h3 {[%emt 0:00:30]} Bd5 {[%emt 0:00:30]} 42. Qc2 {[%emt 0:00:30]} Be4 {[%emt 0:00:30]} 43. Qd2 {[%emt 0:00:30]} Qb1 {[%emt 0:00:30]} 44. Ke2 {[%emt 0:00:30]} Qa1 {[%emt 0:00:30]} 45. Kf2 {[%emt 0:00:30]} Qa8 {[%emt 0:00:30]} 46. Qe2 {[%emt 0:00:30]} Kh7 {[%emt 0:00:30]} 47. Kg1 {[%emt 0:00:30]} Qa1 {[%emt 0:00:30]} 48. Qd2 {[%emt 0:00:30]} Bb7 {[%emt 0:00:30]} 49. Kf2 {[%emt 0:00:30]} Bd5 {[%emt 0:00:30]} 50. Qc2 {[%emt 0:00:30]} Be4 {[%emt 0:00:30]} 51. Qd2 {[%emt 0:00:30]} Qa7 {[%emt 0:00:30]} 52. Qe2 {[%emt 0:00:30]} Qa1 {[%emt 0:00:30]} 53. Qd2 {[%emt 0:00:30]} Qb1 {[%emt 0:00:30]} 54. Ke2 {[%emt 0:00:30]} Qa1 {[%emt 0:00:30]} 55. Kf2 {[%emt 0:00:30]} Qb1 {[%emt 0:00:30]} 56. Ke2 {[%emt 0:00:30]} Qa1 {[%emt 0:00:30]} 1/2-1/2

[Event "11th Chennai Open-GM 2019"]
[Site "Chennai"]
[Date "2019.01.21"]
[Round "6"]
[White "Gajek, Radoslaw"]
[Black "Harshavardhan G B"]
[Result "1-0"]
[ECO "A05"]
[WhiteElo "2481"]
[BlackElo "2275"]
[Annotator "ChessBase"]
[PlyCount "157"]
[EventDate "2019.01.18"]
[EventType "swiss"]
[EventCountry "IND"]
[SourceTitle "playchess.com"]
[Source "ChessBase"]
[SourceQuality "1"]
[TimeControl "5400+30"]

1. Nf3 {[%emt 0:00:00]} Nf6 {[%emt 0:00:50]} 2. c4 {[%emt 0:00:00]} e6 {[%emt 0:01:01]} 3. g3 {[%emt 0:00:00]} d5 {[%emt 0:00:04]} 4. Bg2 {[%emt 0:00:27]} Be7 {[%emt 0:00:06]} 5. d4 {[%emt 0:00:08]} O-O {[%emt 0:00:06]} 6. O-O {[%emt 0:00:05]} c6 {[%emt 0:00:03]} 7. Nbd2 {[%emt 0:00:19]} b6 {[%emt 0:00:06]} 8. Qc2 {[%emt 0:00:06]} Bb7 {[%emt 0:00:04]} 9. e4 {[%emt 0:00:32]} Na6 {[%emt 0:00:04]} 10. a3 {[%emt 0:01:43]} Qc8 {[%emt 0:01:04]} 11. e5 {[%emt 0:03:59]} Nd7 {[%emt 0:00:16]} 12. cxd5 {[%emt 0:00:48]} cxd5 {[%emt 0:00:34]} 13. Qd1 {[%emt 0:00:15]} Qc7 {[%emt 0:01:00]} 14. Re1 {[%emt 0:00:10]} Rac8 {[%emt 0:00:51]} 15. Nf1 {[%emt 0:00:07]} Qc2 {[%emt 0:01:06]} 16. Qxc2 {[%emt 0:00:14]} Rxc2 {[%emt 0:00:06]} 17. Ne3 {[%emt 0:00:04]} Rc7 {[%emt 0:00:39]} 18. Bd2 {[%emt 0:02:21]} Nab8 {[%emt 0:02:13]} 19. Rac1 {[%emt 0:12:03]} Rfc8 {[%emt 0:00:09]} 20. Rxc7 {[%emt 0:01:40]} Rxc7 {[%emt 0:00:06]} 21. Rc1 {[%emt 0:00:04]} Rxc1+ {[%emt 0:00:07]} 22. Bxc1 {[%emt 0:00:06]} Nc6 {[%emt 0:00:44]} 23. Bd2 {[%emt 0:00:54]} f6 {[%emt 0:01:05]} 24. exf6 {[%emt 0:00:32]} Bxf6 {[%emt 0:00:10]} 25. Bc3 {[%emt 0:00:19]} Kf7 {[%emt 0:01:51]} 26. Bf1 {[%emt 0:02:55]} a5 {[%emt 0:00:43]} 27. Ng4 {[%emt 0:06:18]} Ndb8 {[%emt 0:04:18]} 28. Bd3 {[%emt 0:08:56]} Ba6 {[%emt 0:05:32]} 29. Bxh7 {[%emt 0:07:45]} Be2 {[%emt 0:00:33]} 30. Kg2 {[%emt 0:00:52]} Bxf3+ {[%emt 0:00:15]} 31. Kxf3 {[%emt 0:00:09]} g6 {[%emt 0:00:48]} 32. Bg8+ {[%emt 0:00:48]} Ke7 {[%emt 0:00:28]} 33. Bh7 {[%emt 0:02:37]} Kf7 {[%emt 0:00:05]} 34. Bg8+ {[%emt 0:01:31]} Ke7 {[%emt 0:00:07]} 35. Ke3 {[%emt 0:19:22]} b5 {[%emt 0:00:10]} 36. b4 {[%emt 0:00:42]} axb4 {[%emt 0:00:04]} 37. axb4 {[%emt 0:00:22]} Bh8 {[%emt 0:02:01]} 38. h4 {[%emt 0:02:10]} Na6 {[%emt 0:00:17]} 39. Ne5 {[%emt 0:01:24]} Bxe5 {[%emt 0:00:20]} 40. dxe5 {[%emt 0:00:04]} Naxb4 {[%emt 0:00:10]} 41. Bb2 {[%emt 0:01:04]} d4+ {[%emt 0:00:48]} 42. Ke4 {[%emt 0:00:29]} Nc2 {[%emt 0:00:53]} 43. g4 {[%emt 0:00:34]} Nd8 {[%emt 0:11:09]} 44. h5 {[%emt 0:02:10]} gxh5 {[%emt 0:00:36]} 45. gxh5 {[%emt 0:00:06]} Kf8 {[%emt 0:00:07]} 46. Bh7 {[%emt 0:00:18]} Kg7 {[%emt 0:20:30]} 47. Bg6 {[%emt 0:00:18]} b4 {[%emt 0:00:38]} 48. f4 {[%emt 0:00:43]} Nc6 {[%emt 0:16:25]} 49. Be8 {[%emt 0:01:56]} Ne7 {[%emt 0:07:19]} 50. Bd7 {[%emt 0:01:25]} Nd5 {[%emt 0:04:49]} 51. Bxe6 {[%emt 0:01:56]} d3 {[%emt 0:00:21]} 52. h6+ {[%emt 0:06:10]} Kxh6 {[%emt 0:05:22]} 53. Bc1 {[%emt 0:00:34]} b3 {[%emt 0:03:05]} 54. f5+ {[%emt 0:01:06]} Kg7 {[%emt 0:01:46]} 55. Kxd3 {[%emt 0:02:14]} Ncb4+ {[%emt 0:02:50]} 56. Kc4 {[%emt 0:06:12]} Nf4 {[%emt 0:00:22]} 57. Bxf4 {[%emt 0:00:58]} b2 {[%emt 0:00:11]} 58. f6+ {[%emt 0:00:02]} Kg6 {[%emt 0:00:10]} 59. f7 {[%emt 0:00:03]} b1=Q {[%emt 0:00:17]} 60. f8=Q {[%emt 0:00:12]} Qe4+ {[%emt 0:00:53]} 61. Kb3 {[%emt 0:00:26]} Qb1+ {[%emt 0:00:47]} 62. Kc4 {[%emt 0:00:06]} Qe4+ {[%emt 0:00:05]} 63. Kb3 {[%emt 0:00:32]} Qb1+ {[%emt 0:00:08]} 64. Ka4 {[%emt 0:00:03]} Qd1+ {[%emt 0:01:18]} 65. Kxb4 {[%emt 0:00:15]} Qd4+ {[%emt 0:00:06]} 66. Kb5 {[%emt 0:00:14]} Qd3+ {[%emt 0:00:10]} 67. Bc4 {[%emt 0:00:33]} Qd7+ {[%emt 0:00:23]} 68. Kc5 {[%emt 0:00:30]} Qc7+ {[%emt 0:00:12]} 69. Kd4 {[%emt 0:00:25]} Qa7+ {[%emt 0:00:05]} 70. Kd3 {[%emt 0:00:20]} Qh7 {[%emt 0:01:03]} 71. Qg8+ {[%emt 0:00:11]} Qxg8 {[%emt 0:00:05]} 72. Bxg8 {[%emt 0:00:05]} Kf5 {[%emt 0:00:04]} 73. e6 {[%emt 0:00:12]} Kf6 {[%emt 0:00:03]} 74. Ke4 {[%emt 0:00:05]} Ke7 {[%emt 0:00:06]} 75. Ke5 {[%emt 0:00:05]} Ke8 {[%emt 0:00:04]} 76. Kf6 {[%emt 0:00:19]} Kf8 {[%emt 0:00:04]} 77. e7+ {[%emt 0:00:05]} Ke8 {[%emt 0:00:04]} 78. Bf7+ {[%emt 0:00:04]} Kd7 {[%emt 0:00:06]} 79. e8=Q# {[%emt 0:00:08]} 1-0